bitfinex-derivatives/quotes_ETHF0:USTF0_20260131
["timestamp","ask_amount","ask_price","bid_price","bid_amount"]
[1769893563537,0.59851997,2378.2,2377.2,0.28970758]
[1769893563935,0.38799997,2378.2,2377.2,0.28970758]
[1769893564132,0.21056,2377.8,2377.2,0.28970758]
[1769893564539,0.02889169,2377.8,2377.0,0.00484009]
[1769893564745,0.02889169,2377.8,2376.6,0.28970758]
[1769893565641,0.02889169,2377.8,2376.6,0.29436375]
[1769893566143,0.21058,2377.5,2376.6,0.29436375]
[1769893567140,0.21054,2378.1,2376.6,0.29436375]
[1769893567344,0.21054,2378.0,2376.9,0.15408197]
[1769893567941,0.02869983,2378.0,2376.9,0.15408197]
[1769893568144,0.02869983,2378.0,2376.6,4.96461434]
[1769893569242,0.21056,2377.8,2376.6,4.96461434]
[1769893569441,0.21056,2377.8,2376.7,4.95995817]
[1769893569639,0.21056,2377.8,2376.8,4.95995817]
[1769893569840,0.38879918,2378.2,2376.9,3.75166718]
[1769893570043,0.21051,2378.3,2377.3,0.15408197]
[1769893572249,0.58527845,2378.3,2377.4,0.15408197]
[1769893572548,0.58527845,2378.3,2377.5,0.15408197]
[1769893572947,0.00300215,2378.4,2377.9,0.15408197]
[1769893573148,0.21046,2378.9,2378.0,0.15408197]
[1769893573451,0.21043,2379.3,2378.2,0.15408197]
[1769893574048,0.00487696,2379.3,2378.3,3.90574915]
[1769893574349,0.3920544,2379.3,2378.6,0.15408197]
[1769893574550,3.367,2379.7,2378.7,0.15408197]
[1769893574850,3.367,2379.7,2378.8,0.15408197]
[1769893575550,3.37122627,2379.7,2378.9,0.15408197]
[1769893575750,3.76003978,2379.7,2378.9,0.15408197]
[1769893575952,3.76003978,2379.7,2379.0,0.15408197]
[1769893576147,0.39303978,2379.7,2379.0,0.15408197]
[1769893577040,0.15384523,2379.6,2378.8,3.75166718]
[1769893577241,0.15384523,2379.6,2378.6,0.15408197]
[1769893577641,0.15384523,2379.6,2378.4,3.75166718]
[1769893577845,0.15384523,2379.4,2378.1,4.95995817]
[1769893578146,0.54688501,2379.7,2378.3,0.15408197]
[1769893578348,0.54688501,2379.7,2378.4,0.15408197]
[1769893579051,0.39303978,2379.7,2378.4,5.11720865]
[1769893579249,0.39303978,2379.7,2378.5,0.15408197]
[1769893580953,0.39303978,2379.7,2378.7,0.15408197]
[1769893585846,0.15384523,2379.6,2378.4,0.00316851]
[1769893587353,0.15384523,2379.6,2378.4,0.15725048]
[1769893587755,0.60343978,2379.7,2378.5,0.15408197]
[1769893588351,0.60343978,2379.7,2378.6,0.15408197]
[1769893588352,0.39303978,2379.7,2378.6,0.15408197]
[1769893589251,0.00422627,2379.7,2378.6,0.15408197]
[1769893589562,0.15384523,2380.2,2378.9,0.15408197]
[1769893589754,0.36416523,2380.5,2378.9,0.15408197]
[1769893589955,0.36416523,2380.5,2379.0,0.15408197]
[1769893590460,0.36834493,2380.5,2379.1,0.15408197]
[1769893591458,0.15384523,2380.4,2379.2,0.15408197]
[1769893592856,0.15384523,2380.3,2378.9,5.11404014]
[1769893593052,0.15384523,2380.2,2378.9,0.15408197]
[1769893593365,0.38763952,2380.5,2378.4,9.10922315]
[1769893593366,0.15384523,2379.6,2378.4,4.96312668]
[1769893593556,0.36429523,2379.1,2377.9,4.95995817]
[1769893593755,2.467,2379.8,2377.6,7.42574647]
[1769893593756,0.15384523,2378.8,2377.6,4.95995817]
[1769893593952,0.21046,2378.9,2377.7,5.11404014]
[1769893594158,0.36430523,2378.9,2377.8,0.15408197]
[1769893594557,0.3686678,2378.9,2377.8,0.15823189]
[1769893595358,0.1582078,2378.9,2377.8,0.15823189]
[1769893595563,0.00436257,2378.9,2377.9,0.15408197]
[1769893595760,0.00436257,2378.9,2378.0,5.11404014]
[1769893595966,0.36425523,2379.5,2378.2,0.15408197]
[1769893596454,0.15384523,2379.4,2378.2,0.15408197]
[1769893596658,0.36428523,2379.2,2378.0,4.95995817]
[1769893596962,0.15384523,2379.1,2377.9,4.95995817]
[1769893598062,0.20900765,2379.1,2377.9,4.95995817]
[1769893599264,0.20900765,2379.1,2378.2,2.50263752]
[1769893599466,0.20900765,2379.1,2377.9,5.17086353]
[1769893599665,0.20900765,2379.1,2378.0,5.17086353]
[1769893599866,0.20900765,2379.1,2378.1,0.21090536]
[1769893600266,0.20900765,2379.1,2378.1,5.17086353]
[1769893600566,0.20900765,2378.9,2377.8,0.00414992]
[1769893601569,0.21045,2379.0,2377.8,6.17452197]
[1769893601769,0.50446024,2379.0,2377.8,6.17452197]
[1769893601966,0.50446024,2379.0,2377.8,0.00414992]
[1769893602166,0.50446024,2379.0,2377.8,6.17452197]
[1769893602368,0.50446024,2379.0,2377.9,0.30788983]
[1769893603474,0.00536247,2379.2,2378.0,0.30788983]
[1769893603973,0.00536247,2379.2,2378.2,0.30788983]
[1769893604169,0.29937271,2379.2,2378.2,0.30788983]
[1769893604473,0.00536247,2379.2,2378.2,6.47826188]
[1769893604672,0.00536247,2379.2,2378.3,0.30788983]
[1769893605368,0.29401024,2379.8,2378.5,0.30788983]
[1769893605575,0.29401024,2380.1,2378.8,0.30788983]
[1769893606165,0.2979853,2380.1,2378.8,0.30788983]
[1769893606878,0.29401024,2379.8,2378.5,13.59611852]
[1769893607076,0.50439024,2379.8,2378.5,6.17037205]
[1769893607272,0.29401024,2379.7,2378.5,6.47826188]
[1769893607777,0.29401024,2379.7,2378.6,0.30788983]
[1769893607967,0.29401024,2379.7,2378.9,3.76525979]
[1769893608168,0.50440024,2379.7,2378.5,6.17037205]
[1769893608370,0.29401024,2379.6,2378.4,0.30788983]
[1769893611881,0.29401024,2379.0,2377.8,0.00414992]
[1769893612880,0.29401024,2379.0,2377.8,0.31203975]
[1769893614078,0.29401024,2378.9,2377.6,6.17037205]
[1769893614275,0.29401024,2378.8,2377.4,6.17037205]
[1769893614581,0.29401024,2378.6,2377.3,13.73037205]
[1769893614780,0.21049,2378.7,2377.3,13.73037205]
[1769893614985,0.21049,2378.7,2377.5,6.17037205]
[1769893615182,0.50445024,2379.2,2377.6,6.17037205]
[1769893615372,8.38098796,2379.5,2377.8,0.30788983]
[1769893615781,2.50708378,2379.5,2377.8,0.30788983]
[1769893616682,0.21042,2379.4,2377.8,0.30788983]
[1769893616880,0.21043,2379.2,2377.8,0.30788983]
[1769893617382,0.29401024,2379.1,2377.8,0.30788983]
[1769893620278,0.21043,2379.2,2377.8,0.30788983]
[1769893620479,0.50440024,2379.7,2378.4,0.30788983]
[1769893620780,0.21039,2379.7,2378.6,0.30788983]
[1769893620981,0.21039,2379.7,2378.7,0.30788983]
[1769893621181,3.366,2379.8,2378.7,0.30788983]
[1769893621479,0.50437024,2380.0,2378.8,0.30788983]
[1769893621680,2.50790418,2380.7,2379.1,0.30788983]
[1769893621879,0.29401024,2380.8,2379.7,0.30788983]
[1769893622081,0.29401024,2380.6,2379.4,5.33158701]
[1769893622380,0.29401024,2380.6,2379.6,0.30788983]
[1769893622780,0.00325488,2380.6,2379.8,0.30788983]
[1769893623186,0.29401024,2381.8,2380.4,0.30788983]
[1769893623381,0.65810523,2381.8,2380.4,0.30788983]
[1769893623577,0.29401024,2381.3,2380.1,5.33158701]
[1769893623779,0.29401024,2380.8,2379.6,5.02811624]
[1769893623980,0.29401024,2380.1,2379.0,0.30788983]
[1769893624287,0.29401024,2380.0,2378.6,0.30788983]
[1769893624476,0.29401024,2379.9,2378.6,0.30788983]
[1769893624881,0.29401024,2379.8,2378.6,0.3113931]
[1769893625085,0.38818156,2379.9,2377.8,3.365]
[1769893625086,0.29401024,2379.3,2377.8,9.53537205]
[1769893625282,0.29401024,2379.3,2377.8,3.365]
[1769893625586,0.29401024,2379.3,2377.8,9.53537205]
[1769893625987,0.29401024,2379.3,2377.8,9.53981142]
[1769893626178,0.50441024,2379.6,2378.0,6.17037205]
[1769893626378,0.00472174,2379.9,2378.4,6.17037205]
[1769893626584,0.00472174,2379.9,2378.5,6.17037205]
[1769893626779,2.80109402,2380.7,2378.7,6.17037205]
[1769893626985,2.80109402,2380.7,2378.9,0.75693513]
[1769893627185,0.94513387,2381.4,2379.3,0.75693513]
[1769893627488,0.73489387,2381.3,2379.5,0.75693513]
[1769893627684,5.01498796,2381.7,2379.7,0.75693513]
[1769893627685,0.73489387,2381.7,2379.7,0.75693513]
[1769893627989,0.73820891,2381.7,2380.0,0.75693513]
[1769893628186,0.00331504,2381.7,2380.4,6.92730718]
[1769893628385,0.73489387,2382.4,2380.7,0.75693513]
[1769893628684,0.38345982,2382.3,2380.8,6.92730718]
[1769893628884,0.73489387,2382.2,2380.8,0.75693513]
[1769893629080,0.73489387,2382.5,2380.8,0.75693513]
[1769893629279,0.36636724,2382.5,2380.8,0.75693513]
[1769893629583,0.36636724,2382.5,2380.9,0.75693513]
[1769893629584,0.00304857,2382.5,2380.9,0.75693513]
[1769893629784,0.00304857,2382.5,2381.1,0.75693513]
[1769893630084,0.73489387,2383.2,2381.2,0.75693513]
[1769893630282,0.73489387,2383.2,2381.4,0.75693513]
[1769893630484,6.60697765,2383.6,2381.6,0.75693513]
[1769893630688,4.47824821,2383.6,2381.6,0.75693513]
[1769893630985,0.73489387,2383.3,2381.6,0.76098887]
[1769893631385,1.11835369,2383.2,2381.6,0.76098887]
[1769893631578,0.73489387,2383.2,2381.6,0.76098887]
[1769893631778,0.73489387,2382.7,2381.6,0.00405374]
[1769893631982,0.73489387,2382.7,2381.6,0.76098887]
[1769893632181,0.38345982,2382.2,2381.6,0.00405374]
[1769893632382,0.73489387,2382.3,2381.6,0.00405374]
[1769893632580,1.11835369,2382.3,2381.6,0.00405374]
[1769893632780,0.38345982,2382.0,2381.6,0.00405374]
[1769893632981,0.73489387,2382.7,2381.6,0.76098887]
[1769893633187,0.73489387,2382.7,2381.6,0.00405374]
[1769893633490,0.73489387,2381.8,2380.4,0.75693513]
[1769893634282,0.74019917,2381.8,2380.4,0.75993654]
[1769893635080,0.73489387,2381.7,2380.4,0.75993654]
[1769893635286,0.73489387,2381.4,2380.4,0.00300141]
[1769893635688,0.38345982,2381.3,2380.4,0.00300141]
[1769893636185,0.0053053,2381.8,2380.4,0.75993654]
[1769893636889,1.12365899,2381.8,2380.4,0.75993654]
[1769893637082,0.73489387,2381.6,2380.4,0.75993654]
[1769893637485,0.0053053,2381.8,2380.4,0.75993654]
[1769893638188,0.74019917,2381.8,2380.4,0.75993654]
[1769893638386,0.38345982,2381.5,2380.4,0.75993654]
[1769893638582,0.74019917,2381.8,2380.4,0.75993654]
[1769893638891,0.0053053,2381.8,2380.4,0.75993654]
[1769893640186,0.0053053,2381.8,2380.4,0.97026654]
[1769893640386,0.0053053,2381.8,2380.5,0.75693513]
[1769893640985,0.73489387,2382.5,2380.7,0.2103]
[1769893641197,0.73489387,2382.9,2380.9,0.75693513]
[1769893641391,0.73489387,2382.9,2381.0,0.75693513]
[1769893641587,0.73489387,2382.9,2381.1,0.75693513]
[1769893641782,0.73489387,2382.9,2381.3,0.75693513]
[1769893642092,0.73489387,2382.9,2381.4,0.75693513]
[1769893642292,0.73489387,2382.5,2381.4,0.75693513]
[1769893642492,0.38345982,2382.4,2380.9,0.75693513]
[1769893642793,0.73489387,2382.6,2381.0,0.75693513]
[1769893643189,0.73968346,2382.9,2381.2,0.75693513]
[1769893643589,0.38345982,2382.7,2381.4,0.75693513]
[1769893643789,0.73968346,2382.9,2381.4,0.75693513]
[1769893643988,0.38345982,2382.6,2381.4,0.75693513]
[1769893644188,0.38345982,2382.8,2381.4,0.75693513]
[1769893644584,0.38345982,2382.7,2381.4,0.75693513]
[1769893644890,0.38345982,2382.8,2381.4,0.75693513]
[1769893645291,0.00478959,2382.9,2381.6,0.75693513]
[1769893645591,0.00478959,2382.9,2381.2,3.71361504]
[1769893645592,0.00478959,2382.9,2381.7,0.96714513]
[1769893645790,0.00478959,2382.9,2381.8,0.75693513]
[1769893646391,0.38345982,2382.8,2381.8,0.75693513]
[1769893646588,0.38345982,2382.6,2381.8,0.75693513]
[1769893646890,0.38345982,2382.4,2381.8,0.75693513]
[1769893647087,0.38345982,2382.6,2381.8,0.75693513]
[1769893647481,0.73968346,2382.9,2381.8,0.96713513]
[1769893647691,0.73968346,2382.9,2381.8,0.75693513]
[1769893647891,0.00478959,2382.9,2381.8,0.75693513]
[1769893648285,1.11324821,2383.6,2382.0,0.75693513]
[1769893649286,1.11808763,2383.6,2382.0,0.75693513]
[1769893649592,1.11808763,2383.6,2381.9,10.22480504]
[1769893649593,1.11808763,2383.6,2382.3,0.75693513]
[1769893649795,1.11808763,2383.6,2382.3,0.7614153]
[1769893649993,0.38319376,2383.6,2382.3,0.7614153]
[1769893650191,0.73489387,2384.0,2382.7,0.75693513]
[1769893650395,0.73489387,2383.6,2382.4,4.47055017]
[1769893650892,0.73489387,2384.3,2382.6,0.75693513]
[1769893651094,0.73976931,2384.3,2382.6,0.75693513]
[1769893651292,0.73976931,2384.3,2382.4,4.94714688]
[1769893651293,0.73489387,2384.0,2382.4,0.75693513]
[1769893651489,0.73489387,2383.9,2382.3,0.00448017]
[1769893652092,0.73489387,2383.6,2382.3,0.00448017]
[1769893653593,0.73489387,2383.6,2382.3,0.7614153]
[1769893654290,0.73489387,2383.9,2382.3,3.72934912]
[1769893654490,0.73489387,2383.9,2382.6,0.75693513]
[1769893654801,0.3812176,2384.3,2382.8,0.75693513]
[1769893654802,1.11611147,2384.3,2382.8,0.75693513]
[1769893654997,1.11611147,2384.3,2382.9,0.75693513]
[1769893655294,0.73489387,2384.2,2382.8,3.72486895]
[1769893655499,0.73489387,2384.0,2382.5,3.72486895]
[1769893655800,0.73489387,2383.6,2382.3,0.00448017]
[1769893656497,0.73489387,2383.6,2382.3,3.72934912]
[1769893656894,0.73489387,2383.6,2382.3,0.00448017]
[1769893657397,0.73489387,2383.6,2382.3,3.72934912]
[1769893658099,0.73489387,2383.6,2382.3,5.96444413]
[1769893658298,0.73489387,2383.6,2382.5,5.95996396]
[1769893658493,0.73489387,2383.6,2382.5,2.23509501]
[1769893659193,0.73489387,2383.6,2382.4,3.72486895]
[1769893659194,0.73489387,2383.6,2382.3,3.72934912]
[1769893659396,0.73489387,2383.6,2382.4,2.49947674]
[1769893660094,0.73489387,2383.6,2382.5,4.73457175]
[1769893660293,0.73489387,2383.6,2382.6,2.23509501]
[1769893660697,2.36565514,2384.1,2382.7,4.73457175]
[1769893660897,2.36565514,2384.1,2382.8,2.23509501]
[1769893661098,2.36565514,2384.1,2382.9,2.23509501]
[1769893661889,2.36565514,2384.1,2382.7,3.72486895]
[1769893661890,2.57565514,2384.1,2382.7,2.49947674]
[1769893662090,2.57565514,2384.1,2382.9,2.49947674]
[1769893663695,2.57565514,2384.1,2382.9,5.0993298]
[1769893663898,2.36565514,2384.1,2383.0,2.59985306]
[1769893664197,2.8442176,2384.3,2382.9,2.49947674]
[1769893664198,0.3812176,2384.3,2383.3,2.59985306]
[1769893664498,0.00487544,2384.3,2383.3,2.59985306]
[1769893664800,0.00487544,2384.3,2383.5,5.0993298]
[1769893664996,0.41919864,2384.3,2383.5,5.0993298]
[1769893665199,2.44962863,2384.6,2383.7,2.59985306]
[1769893665399,2.44962863,2385.0,2383.9,2.59985306]
[1769893665598,2.44962863,2385.0,2384.0,5.0993298]
[1769893665599,0.40839535,2384.8,2384.0,5.0993298]
[1769893666300,0.41253777,2384.8,2384.0,5.1033683]
[1769893666498,0.00414242,2384.8,2384.1,2.49947674]
[1769893666698,2.44962863,2385.0,2384.1,5.0993298]
[1769893667003,2.44962863,2385.8,2384.6,5.0993298]
[1769893667403,2.44962863,2385.8,2384.6,2.59985306]
[1769893667696,2.65950863,2385.5,2384.3,2.49947674]
[1769893667902,2.44962863,2385.2,2384.0,3.72890745]
[1769893668097,2.44962863,2385.2,2384.0,0.0040385]
[1769893668295,2.65953863,2385.2,2383.7,6.32472201]
[1769893668490,2.44962863,2385.2,2383.9,3.72486895]
[1769893668699,2.44962863,2385.2,2383.7,4.94714688]
[1769893668700,2.44962863,2385.2,2384.1,2.59985306]
[1769893669295,2.44962863,2385.2,2384.1,2.60419041]
[1769893670095,0.42889157,2385.8,2384.4,2.59985306]
[1769893670296,0.00525914,2385.8,2384.9,2.59985306]
[1769893670697,2.44962863,2386.5,2384.9,2.59985306]
[1769893670900,2.44962863,2386.5,2385.0,2.59985306]
[1769893671099,2.85970096,2386.5,2385.0,2.59985306]
[1769893671292,2.44962863,2386.2,2384.8,6.32472201]
[1769893671495,2.44962863,2386.2,2384.9,2.59985306]
[1769893671696,2.45327282,2386.2,2384.9,2.59985306]
[1769893672296,2.45327282,2386.2,2384.7,2.59985306]
[1769893672500,2.45327282,2386.2,2384.8,2.59985306]
[1769893673296,2.45327282,2386.2,2384.7,2.59985306]
[1769893673501,2.45327282,2386.2,2384.8,2.59985306]
[1769893674304,0.00364419,2386.2,2384.8,2.59985306]
[1769893674601,2.44962863,2386.1,2384.8,2.59985306]
[1769893674797,0.00364419,2386.2,2384.8,2.59985306]
[1769893674998,0.00364419,2386.2,2384.9,2.59985306]
[1769893676101,2.45327282,2386.2,2384.9,2.59985306]
[1769893678000,2.45327282,2386.2,2384.6,2.59985306]
[1769893678201,2.44962863,2385.9,2384.6,2.59985306]
[1769893679306,0.00364419,2386.2,2384.6,2.59985306]
[1769893679503,2.45327282,2386.2,2384.7,2.59985306]
[1769893680207,0.00364419,2386.2,2384.9,2.59985306]
[1769893680601,2.45327282,2386.2,2384.9,2.59985306]
[1769893680802,0.00364419,2386.2,2385.1,2.59985306]
[1769893681005,2.44962863,2387.2,2385.6,2.59985306]
[1769893681205,2.44962863,2387.5,2385.8,2.59985306]
[1769893681509,2.44962863,2387.9,2386.0,2.59985306]
[1769893681806,2.44962863,2387.5,2386.0,2.59985306]
[1769893681998,2.44962863,2387.5,2386.0,2.60359827]
[1769893681999,2.45339589,2387.5,2386.0,2.60359827]
[1769893682704,2.45339589,2387.5,2385.4,2.59985306]
[1769893682705,2.44962863,2386.9,2385.4,2.59985306]
[1769893683706,2.44962863,2386.9,2385.4,2.60468531]
[1769893684107,2.44962863,2387.3,2385.6,2.59985306]
[1769893684305,2.44962863,2387.3,2385.6,2.80972306]
[1769893684504,2.44962863,2387.3,2385.5,3.72486895]
[1769893684505,0.42522158,2387.5,2385.9,2.59985306]
[1769893684704,0.42522158,2387.5,2386.0,2.59985306]
[1769893685209,0.42522158,2387.5,2386.2,2.59985306]
[1769893685402,0.00376726,2387.5,2386.2,2.59985306]
[1769893685602,2.44962863,2387.3,2385.9,3.356]
[1769893685903,0.42678855,2387.5,2385.4,2.60468531]
[1769893685904,2.44962863,2387.1,2385.4,2.60468531]
[1769893686111,2.44962863,2386.9,2385.4,2.60468531]
[1769893686307,2.44962863,2386.3,2384.9,2.59985306]
[1769893686508,2.44962863,2386.3,2384.6,3.72486895]
[1769893686708,2.44962863,2385.9,2384.3,3.356]
[1769893687210,3.59238556,2385.7,2384.3,3.356]
[1769893687410,3.59713264,2385.7,2384.4,3.49313367]
[1769893687612,0.00474708,2385.7,2384.4,3.49313367]
[1769893688012,3.59713264,2385.7,2384.4,3.49313367]
[1769893689008,3.59713264,2385.7,2384.3,3.35932544]
[1769893689204,3.59713264,2385.7,2384.4,3.49313367]
[1769893690008,0.00474708,2385.7,2384.5,7.21800262]
[1769893690211,2.46,2386.7,2384.7,3.49313367]
[1769893690212,3.59238556,2386.6,2384.7,3.49313367]
[1769893690411,3.59238556,2386.6,2384.9,3.49313367]
[1769893690613,3.59238556,2386.6,2385.0,3.49313367]
[1769893690912,3.59238556,2386.6,2384.8,3.49313367]
[1769893691099,3.59238556,2386.3,2384.6,3.49313367]
[1769893691305,3.59238556,2386.1,2384.5,3.72486895]
[1769893691500,3.59238556,2385.9,2384.3,0.00332544]
[1769893691701,3.80222556,2385.9,2384.3,3.49645911]
[1769893692309,3.80222556,2385.9,2384.4,3.49313367]
[1769893692913,3.80222556,2385.9,2384.5,3.49313367]
[1769893693207,3.59238556,2385.9,2384.5,3.49313367]
[1769893693409,3.59238556,2385.9,2384.6,3.49313367]
[1769893693908,3.59238556,2386.2,2384.7,3.49313367]
[1769893694103,3.59238556,2386.2,2384.7,3.72486895]
[1769893694307,3.59238556,2386.2,2384.8,3.72486895]
[1769893694609,3.80220556,2386.2,2384.6,3.72486895]
[1769893695203,3.59238556,2386.0,2384.5,3.72486895]
[1769893695409,0.00293479,2386.3,2384.3,7.22132806]
[1769893695410,3.59238556,2385.8,2384.3,7.22132806]
[1769893696014,3.59238556,2385.8,2384.4,3.49313367]
[1769893696210,3.59238556,2385.8,2384.6,3.72486895]
[1769893696408,3.59238556,2385.8,2384.7,3.49313367]
[1769893696610,3.59238556,2385.8,2384.5,3.72486895]
[1769893696811,3.59238556,2385.8,2384.5,12.1651495]
[1769893697113,3.59238556,2385.8,2384.8,3.49313367]
[1769893697908,3.59238556,2385.8,2384.7,3.72486895]
[1769893698109,3.59238556,2385.8,2384.6,3.72486895]
[1769893698613,3.59238556,2385.8,2384.7,3.72486895]
[1769893699516,3.59238556,2385.8,2384.8,7.21800262]
[1769893699716,3.59238556,2386.2,2384.9,3.49313367]
[1769893699915,3.59238556,2386.2,2384.9,7.21800262]
[1769893700116,3.59238556,2386.2,2385.0,3.49313367]
[1769893700519,3.59238556,2386.2,2385.2,3.49313367]
[1769893700916,3.35893479,2386.3,2385.2,3.49313367]
[1769893701213,6.95132035,2386.3,2385.2,3.49313367]
[1769893701514,3.59238556,2386.2,2385.1,3.72486895]
[1769893701717,3.59238556,2386.2,2384.9,3.75049767]
[1769893702015,3.59238556,2386.2,2385.1,3.49313367]
[1769893702417,3.59238556,2386.2,2385.2,3.49313367]
[1769893702612,3.59238556,2386.2,2385.1,4.94714688]
[1769893702815,3.59238556,2386.2,2385.0,4.94714688]
[1769893703318,3.59238556,2386.2,2385.1,3.49313367]
[1769893703518,3.35893479,2386.3,2385.2,3.49313367]
[1769893703713,3.35893479,2386.3,2385.3,3.49313367]
[1769893703918,0.00293479,2386.3,2385.3,8.44028055]
[1769893704113,3.59238556,2386.9,2385.6,3.49313367]
[1769893704314,3.59238556,2386.9,2385.8,3.49313367]
[1769893705018,3.59238556,2387.2,2386.1,3.49313367]
[1769893705216,3.59696117,2387.2,2386.1,3.49668844]
[1769893705421,0.00457561,2387.2,2386.2,3.49313367]
[1769893705620,0.00457561,2387.2,2386.3,3.49313367]
[1769893705920,0.40985348,2387.6,2386.5,3.49313367]
[1769893706118,3.59238556,2387.9,2386.5,3.49313367]
[1769893706417,3.59238556,2387.9,2386.6,3.49313367]
[1769893706720,3.59743743,2387.9,2386.6,3.49313367]
[1769893706920,4.02222197,2387.9,2386.6,3.49313367]
[1769893707122,4.23189197,2387.9,2386.2,8.44028055]
[1769893707318,4.23189197,2387.9,2386.4,4.94714688]
[1769893707619,4.23189197,2387.9,2386.3,3.49313367]
[1769893707620,4.02222197,2387.9,2386.3,3.49313367]
[1769893707815,4.02222197,2387.9,2386.6,3.49313367]
[1769893708021,4.23189197,2387.9,2386.3,4.94714688]
[1769893708215,3.59238556,2387.7,2386.2,3.49313367]
[1769893708421,3.59238556,2387.7,2386.4,3.49313367]
[1769893709010,3.59238556,2387.7,2386.5,3.49313367]
[1769893710321,0.42983641,2387.9,2386.5,3.49313367]
[1769893710523,0.42983641,2387.9,2386.6,3.49313367]
[1769893710719,0.42983641,2387.9,2386.7,3.49313367]
[1769893711023,3.59238556,2389.5,2387.8,3.49313367]
[1769893711218,3.59238556,2389.5,2387.7,6.17037205]
[1769893711219,3.59238556,2389.5,2388.2,3.49313367]
[1769893711421,3.59238556,2389.9,2388.3,3.49313367]
[1769893711726,4.0026705,2389.9,2388.4,3.49313367]
[1769893711923,3.59567611,2389.9,2388.4,3.49659946]
[1769893712426,3.80192556,2389.4,2387.9,4.142]
[1769893712625,3.59238556,2389.2,2387.9,4.142]
[1769893712822,3.80193556,2389.2,2387.9,4.142]
[1769893713026,3.80204556,2388.0,2387.1,4.97974267]
[1769893713227,3.80204556,2388.0,2386.7,3.49313367]
[1769893713426,3.5955335,2388.0,2386.7,3.49655395]
[1769893713630,0.00314794,2388.0,2386.9,3.49313367]
[1769893713827,3.59238556,2388.5,2387.0,3.49313367]
[1769893714027,0.2096,2388.7,2387.0,3.49313367]
[1769893714926,0.21372896,2388.7,2387.0,3.49313367]
[1769893715124,0.21372896,2388.7,2387.0,8.47287634]
[1769893715324,0.00412896,2388.7,2387.2,3.49313367]
[1769893715728,3.59651452,2388.7,2387.2,3.49313367]
[1769893715924,3.59238556,2388.1,2386.9,3.49313367]
[1769893716125,0.2097,2387.5,2386.7,0.00342028]
[1769893716326,0.2097,2387.5,2386.7,3.49655395]
[1769893716524,3.80208556,2387.5,2386.7,0.00342028]
[1769893716724,3.80209556,2387.4,2386.7,0.00342028]
[1769893716924,2.459,2388.2,2386.7,4.01213925]
[1769893716925,3.59238556,2387.8,2386.7,4.01213925]
[1769893717631,0.20966,2388.0,2386.7,4.01213925]
[1769893717829,2.459,2388.5,2386.7,4.01213925]
[1769893718031,4.02581857,2388.4,2386.7,4.01213925]
[1769893718621,4.23545857,2388.2,2386.7,4.01213925]
[1769893720334,4.23547857,2388.0,2386.7,4.01213925]
[1769893720724,0.20966,2388.0,2386.7,4.01213925]
[1769893721733,4.02581857,2388.4,2386.8,3.99306707]
[1769893722133,4.08966604,2387.7,2386.7,0.00342028]
[1769893722531,0.20976,2386.9,2386.1,3.355]
[1769893722732,4.08975604,2386.7,2385.7,3.99306707]
[1769893723226,4.32812899,2386.7,2385.7,3.99306707]
[1769893723433,0.20985,2385.8,2384.9,7.34706707]
[1769893723625,0.00459051,2385.8,2384.9,3.99720951]
[1769893726236,3.88456655,2385.8,2384.9,0.00414244]
[1769893726426,0.00459051,2385.8,2384.9,3.99720951]
[1769893728234,3.88456655,2385.8,2384.9,0.00414244]
[1769893728434,3.88456655,2385.8,2384.9,3.99720951]
[1769893728635,0.00459051,2385.8,2384.9,3.99720951]
[1769893730327,0.00459051,2385.8,2384.9,6.48071516]
[1769893730533,0.00459051,2385.8,2385.0,3.99306707]
[1769893731631,3.88456655,2385.8,2384.9,0.00414244]
[1769893732926,3.87997604,2385.6,2384.5,1.07913298]
[1769893733529,3.87997604,2385.6,2384.4,6.47657272]
[1769893733936,3.87997604,2385.6,2384.4,6.48077398]
[1769893734535,4.08987604,2385.3,2384.4,0.00420126]
[1769893734728,6.33997604,2385.3,2384.4,0.00420126]
[1769893734929,2.46,2385.4,2384.4,3.99726833]
[1769893735130,6.34456655,2385.8,2384.4,3.99726833]
[1769893735328,6.34456655,2385.8,2384.5,3.99306707]
[1769893735538,3.88456655,2385.8,2384.5,3.99306707]
[1769893735735,0.00459051,2385.8,2384.5,3.99306707]
[1769893735939,0.00459051,2385.8,2384.7,6.47657272]
[1769893736137,0.00459051,2385.8,2384.8,3.99306707]
[1769893736730,0.00459051,2385.8,2384.9,6.47657272]
[1769893736931,3.87997604,2386.6,2385.3,3.99306707]
[1769893737337,4.32812899,2386.7,2385.3,3.99306707]
[1769893737833,4.3335748,2386.7,2385.1,2.48350565]
[1769893738040,3.87997604,2386.2,2384.9,2.48350565]
[1769893738236,3.87997604,2386.0,2384.9,2.48350565]
[1769893738941,3.87997604,2386.0,2384.9,6.47657272]
[1769893739135,3.87997604,2386.0,2385.0,3.99306707]
[1769893739940,2.46,2386.1,2385.0,6.47657272]
[1769893740143,4.3335748,2386.7,2385.1,3.99306707]
[1769893740333,2.46,2386.6,2385.2,3.99306707]
[1769893740735,4.3335748,2386.7,2385.2,3.99306707]
[1769893740935,0.00544581,2386.7,2385.6,3.99306707]
[1769893741134,0.2097,2387.5,2385.8,3.99306707]
[1769893741135,3.87997604,2387.4,2385.8,3.99306707]
[1769893741447,0.2097,2387.5,2386.3,3.99306707]
[1769893741738,0.2097,2387.5,2385.9,2.48015091]
[1769893741739,3.87997604,2386.8,2385.9,2.48015091]
[1769893741943,3.87997604,2386.7,2385.5,3.99306707]
[1769893742141,3.88528976,2386.7,2385.5,3.9969775]
[1769893742333,3.87997604,2386.4,2384.9,7.72041429]
[1769893742538,4.08980604,2386.1,2384.9,3.72734722]
[1769893742737,4.08980604,2386.1,2385.0,3.99306707]
[1769893742935,3.87997604,2386.1,2385.0,3.99306707]
[1769893743136,4.08976604,2386.5,2385.1,3.99306707]
[1769893743339,6.54976604,2386.5,2385.2,3.99306707]
[1769893744347,3.87997604,2386.4,2385.2,3.99306707]
[1769893744551,3.87997604,2386.0,2385.1,0.00479696]
[1769893745146,3.87997604,2386.4,2385.1,3.99786403]
[1769893745347,3.87997604,2386.4,2385.2,3.99306707]
[1769893745542,0.00531372,2386.7,2385.5,3.99306707]
[1769893745747,0.00531372,2386.7,2385.8,3.99306707]
[1769893746149,0.00531372,2386.7,2385.8,7.72041429]
[1769893746449,0.00531372,2386.7,2385.9,3.99306707]
[1769893746843,0.45681784,2387.5,2386.1,3.99306707]
[1769893746844,3.87997604,2387.4,2386.1,3.99306707]
[1769893747639,3.87997604,2387.4,2386.2,7.62056538]
[1769893747841,3.88452083,2387.4,2386.3,3.89321816]
[1769893748240,3.93555685,2387.1,2386.0,3.72734722]
[1769893748444,3.93555685,2386.9,2386.1,3.72734722]
[1769893748852,3.93555685,2386.9,2385.9,3.72734722]
[1769893749150,3.93555685,2386.9,2385.9,7.62056538]
[1769893749450,2.46,2387.0,2386.1,7.62056538]
[1769893749649,6.39555685,2387.0,2386.1,7.62056538]
[1769893749849,6.39555685,2387.0,2386.0,3.72734722]
[1769893750349,6.39555685,2387.0,2386.1,3.72734722]
[1769893751052,6.39555685,2387.0,2386.2,3.72734722]
[1769893751551,0.00454479,2387.4,2386.5,7.62056538]